[Event "Titled Tuesday Blitz April 26 Late 2022"]
[White "Onslow, Alfie"]
[Black "Veiga, Emerson de Sousa"]
[WhiteFideId "436976"]
[BlackFideId "2151898"]
[WhiteElo "1884"]
[BlackElo "2034"]
[Result "0-1"]
[Round "05"]
[TimeControl "180+1"]
[Date "2022.04.26"]
[WhiteClock "0:00:01"]
[BlackClock "0:00:43"]

1. e4 {[%clk 0:02:56]}  c5 {[%clk 0:02:59]} 2. Nc3 {[%clk 0:02:55]}  d6 {[%clk 0:02:56]} 3. d4 {[%clk 0:02:55]}  cxd4 {[%clk 0:02:55]} 4. Qxd4 {[%clk 0:02:55]}  Nc6 {[%clk 0:02:53]} 5. Qd2 {[%clk 0:02:55]}  Nf6 {[%clk 0:02:51]} 6. b3 {[%clk 0:02:55]}  g6 {[%clk 0:02:51]} 7. Bb2 {[%clk 0:02:55]}  Bg7 {[%clk 0:02:52]} 8. O-O-O {[%clk 0:02:56]}  O-O {[%clk 0:02:51]} 9. f4 {[%clk 0:02:50]}  Be6 {[%clk 0:02:40]} 10. Nf3 {[%clk 0:02:49]}  Qa5 {[%clk 0:02:35]} 11. Kb1 {[%clk 0:02:46]}  Rfc8 {[%clk 0:02:34]} 12. h3 {[%clk 0:02:38]}  b5 {[%clk 0:02:33]} 13. g4 {[%clk 0:02:25]}  Nb4 {[%clk 0:02:24]} 14. a3 {[%clk 0:02:19]}  Nxc2 {[%clk 0:02:18]} 15. Qxc2 {[%clk 0:02:13]}  Nxe4 {[%clk 0:01:34]} 16. b4 {[%clk 0:02:03]}  Nxc3+ {[%clk 0:01:27]} 17. Qxc3 {[%clk 0:02:03]}  Rxc3 {[%clk 0:01:23]} 18. bxa5 {[%clk 0:02:02]}  Rxf3 {[%clk 0:01:23]} 19. Bg2 {[%clk 0:01:30]}  Rb3 {[%clk 0:01:21]} 20. Bxa8 {[%clk 0:01:29]}  Rxb2+ {[%clk 0:01:19]} 21. Kc1 {[%clk 0:01:30]}  Rb3 {[%clk 0:01:15]} 22. Bd5 {[%clk 0:01:26]}  Rc3+ {[%clk 0:01:12]} 23. Kb1 {[%clk 0:01:19]}  Rxa3 {[%clk 0:01:12]} 24. Bxe6 {[%clk 0:01:14]}  fxe6 {[%clk 0:01:13]} 25. Kc2 {[%clk 0:01:01]}  Rxa5 {[%clk 0:01:11]} 26. Kb3 {[%clk 0:00:55]}  Ra4 {[%clk 0:01:09]} 27. Rhf1 {[%clk 0:00:51]}  a5 {[%clk 0:01:07]} 28. h4 {[%clk 0:00:24]}  Rb4+ {[%clk 0:01:04]} 29. Kc2 {[%clk 0:00:22]}  a4 {[%clk 0:01:03]} 30. Rb1 {[%clk 0:00:20]}  Rc4+ {[%clk 0:01:02]} 31. Kd3 {[%clk 0:00:19]}  Rd4+ {[%clk 0:00:57]} 32. Ke3 {[%clk 0:00:17]}  b4 {[%clk 0:00:56]} 33. Rfd1 {[%clk 0:00:15]}  Rc4 {[%clk 0:00:51]} 34. Rd3 {[%clk 0:00:07]}  b3 {[%clk 0:00:46]} 35. Kf3 {[%clk 0:00:03]}  Bd4 {[%clk 0:00:44]} 36. Rbd1 {[%clk 0:00:01]}  e5 {[%clk 0:00:43]} 0-1


[Site "https://www.chess.com"]

[Event "Titled Tuesday Blitz April 26 Late 2022"]
[White "Oparin, Grigoriy"]
[Black "Svane, Rasmus"]
[WhiteFideId "24125890"]
[BlackFideId "4657101"]
[WhiteElo "2665"]
[BlackElo "2645"]
[Result "1-0"]
[Round "05"]
[TimeControl "180+1"]
[Date "2022.04.26"]
[WhiteClock "0:00:13"]
[BlackClock "0:00:04"]

1. d4 {[%clk 0:03:00]}  Nf6 {[%clk 0:02:58]} 2. c4 {[%clk 0:03:01]}  e6 {[%clk 0:02:59]} 3. Nf3 {[%clk 0:03:02]}  d5 {[%clk 0:02:59]} 4. g3 {[%clk 0:03:03]}  Be7 {[%clk 0:02:56]} 5. Bg2 {[%clk 0:03:03]}  O-O {[%clk 0:02:56]} 6. Qc2 {[%clk 0:03:02]}  c5 {[%clk 0:02:49]} 7. dxc5 {[%clk 0:03:03]}  Qa5+ {[%clk 0:02:45]} 8. Nc3 {[%clk 0:03:03]}  dxc4 {[%clk 0:02:43]} 9. O-O {[%clk 0:03:04]}  Nc6 {[%clk 0:02:40]} 10. Bg5 {[%clk 0:03:01]}  Qxc5 {[%clk 0:02:40]} 11. Bxf6 {[%clk 0:02:59]}  gxf6 {[%clk 0:02:36]} 12. Rad1 {[%clk 0:02:55]}  f5 {[%clk 0:02:28]} 13. e4 {[%clk 0:02:52]}  Bf6 {[%clk 0:02:26]} 14. exf5 {[%clk 0:02:39]}  Qxf5 {[%clk 0:02:22]} 15. Qe2 {[%clk 0:02:39]}  Rd8 {[%clk 0:01:18]} 16. Rxd8+ {[%clk 0:02:36]}  Bxd8 {[%clk 0:01:08]} 17. Rd1 {[%clk 0:02:36]}  Bf6 {[%clk 0:01:00]} 18. Qxc4 {[%clk 0:02:33]}  Qc2 {[%clk 0:00:57]} 19. Ne1 {[%clk 0:01:32]}  Qxb2 {[%clk 0:00:57]} 20. Ne4 {[%clk 0:01:32]}  Be7 {[%clk 0:00:57]} 21. Nf3 {[%clk 0:01:19]}  Qb4 {[%clk 0:00:46]} 22. Qc2 {[%clk 0:01:19]}  Rb8 {[%clk 0:00:40]} 23. Neg5 {[%clk 0:01:14]}  f5 {[%clk 0:00:38]} 24. Qe2 {[%clk 0:01:11]}  Bxg5 {[%clk 0:00:37]} 25. Nxg5 {[%clk 0:01:11]}  Qe7 {[%clk 0:00:37]} 26. h4 {[%clk 0:01:02]}  Bd7 {[%clk 0:00:34]} 27. Qb2 {[%clk 0:00:50]}  h6 {[%clk 0:00:29]} 28. Nxe6 {[%clk 0:00:46]}  Bxe6 {[%clk 0:00:24]} 29. Bxc6 {[%clk 0:00:46]}  Qf7 {[%clk 0:00:12]} 30. Qe5 {[%clk 0:00:33]}  Rf8 {[%clk 0:00:06]} 31. Rd6 {[%clk 0:00:26]}  bxc6 {[%clk 0:00:04]} 32. Rxe6 {[%clk 0:00:26]}  Qg7 {[%clk 0:00:04]} 33. Qxg7+ {[%clk 0:00:23]}  Kxg7 {[%clk 0:00:05]} 34. Rxc6 {[%clk 0:00:24]}  Rf7 {[%clk 0:00:03]} 35. Kg2 {[%clk 0:00:23]}  f4 {[%clk 0:00:03]} 36. g4 {[%clk 0:00:22]}  Rd7 {[%clk 0:00:02]} 37. Ra6 {[%clk 0:00:21]}  Kh7 {[%clk 0:00:01]} 38. Kf3 {[%clk 0:00:21]}  Rf7 {[%clk 0:00:02]} 39. Ra4 {[%clk 0:00:20]}  h5 {[%clk 0:00:01]} 40. g5 {[%clk 0:00:20]}  Rc7 {[%clk 0:00:02]} 41. Rxf4 {[%clk 0:00:20]}  Rc3+ {[%clk 0:00:02]} 42. Kg2 {[%clk 0:00:19]}  Ra3 {[%clk 0:00:03]} 43. Rf7+ {[%clk 0:00:20]}  Kg6 {[%clk 0:00:03]} 44. Rf6+ {[%clk 0:00:20]}  Kg7 {[%clk 0:00:04]} 45. Rc6 {[%clk 0:00:16]}  Rxa2 {[%clk 0:00:04]} 46. Kg3 {[%clk 0:00:17]}  Ra4 {[%clk 0:00:04]} 47. f3 {[%clk 0:00:15]}  a5 {[%clk 0:00:04]} 48. Ra6 {[%clk 0:00:14]}  Ra1 {[%clk 0:00:04]} 49. Kf4 {[%clk 0:00:14]}  Ra4+ {[%clk 0:00:04]} 50. Kf5 {[%clk 0:00:14]}  Rxh4 {[%clk 0:00:05]} 51. Ra7+ {[%clk 0:00:14]}  Kf8 {[%clk 0:00:05]} 52. Rxa5 {[%clk 0:00:15]}  Rh2 {[%clk 0:00:06]} 53. Kf6 {[%clk 0:00:13]}  Ke8 {[%clk 0:00:05]} 54. f4 {[%clk 0:00:12]}  h4 {[%clk 0:00:05]} 55. g6 {[%clk 0:00:12]}  h3 {[%clk 0:00:06]} 56. g7 {[%clk 0:00:12]}  Rg2 {[%clk 0:00:04]} 57. Rg5 {[%clk 0:00:13]} 1-0


[Site "https://www.chess.com"]

[Event "Titled Tuesday Blitz April 26 Late 2022"]
[White "Oro, Luis"]
[Black "Mirza, Diana"]
[WhiteFideId "104094"]
[BlackFideId "2503999"]
[WhiteElo "2390"]
[BlackElo "1813"]
[Result "1-0"]
[Round "05"]
[TimeControl "180+1"]
[Date "2022.04.26"]
[WhiteClock "0:01:20"]
[BlackClock "0:01:06"]

1. e4 {[%clk 0:03:00]}  e5 {[%clk 0:02:55]} 2. Nf3 {[%clk 0:03:00]}  d6 {[%clk 0:02:55]} 3. d4 {[%clk 0:02:59]}  exd4 {[%clk 0:02:56]} 4. Nxd4 {[%clk 0:03:00]}  Nf6 {[%clk 0:02:56]} 5. Nc3 {[%clk 0:02:59]}  g6 {[%clk 0:02:57]} 6. f3 {[%clk 0:02:56]}  Bg7 {[%clk 0:02:58]} 7. Be3 {[%clk 0:02:56]}  O-O {[%clk 0:02:58]} 8. Be2 {[%clk 0:02:55]}  Re8 {[%clk 0:02:47]} 9. O-O {[%clk 0:02:29]}  d5 {[%clk 0:02:45]} 10. Bg5 {[%clk 0:02:22]}  c5 {[%clk 0:02:42]} 11. Nb3 {[%clk 0:02:11]}  Qb6 {[%clk 0:02:07]} 12. Bxf6 {[%clk 0:01:48]}  Qxf6 {[%clk 0:01:46]} 13. Nxd5 {[%clk 0:01:46]}  Qe5 {[%clk 0:01:31]} 14. f4 {[%clk 0:01:24]}  Qxe4 {[%clk 0:01:19]} 15. Bf3 {[%clk 0:01:23]}  Qxf4 {[%clk 0:01:06]} 16. Nxf4 {[%clk 0:01:20]} 1-0


[Site "https://www.chess.com"]

[Event "Titled Tuesday Blitz April 26 Late 2022"]
[White "Ouellet, Maili-Jade"]
[Black "Barria Zuniga, Daniel"]
[WhiteFideId "2620472"]
[BlackFideId "3400816"]
[WhiteElo "1899"]
[BlackElo "2414"]
[Result "0-1"]
[Round "05"]
[TimeControl "180+1"]
[Date "2022.04.26"]
[WhiteClock "0:00:02"]
[BlackClock "0:01:09"]

1. d4 {[%clk 0:03:00]}  d5 {[%clk 0:02:55]} 2. c4 {[%clk 0:03:01]}  c6 {[%clk 0:02:55]} 3. Nf3 {[%clk 0:03:00]}  dxc4 {[%clk 0:02:54]} 4. a4 {[%clk 0:02:59]}  e6 {[%clk 0:02:53]} 5. Nc3 {[%clk 0:02:59]}  Bb4 {[%clk 0:02:52]} 6. g3 {[%clk 0:02:58]}  b5 {[%clk 0:02:51]} 7. Bg2 {[%clk 0:02:57]}  Bb7 {[%clk 0:02:51]} 8. O-O {[%clk 0:02:57]}  a6 {[%clk 0:02:50]} 9. Ne5 {[%clk 0:02:50]}  Qb6 {[%clk 0:02:36]} 10. Be3 {[%clk 0:02:40]}  Qc7 {[%clk 0:02:08]} 11. Bf4 {[%clk 0:02:38]}  Qb6 {[%clk 0:02:08]} 12. Be3 {[%clk 0:02:35]}  Qc7 {[%clk 0:02:07]} 13. Ne4 {[%clk 0:00:58]}  Nf6 {[%clk 0:01:58]} 14. b3 {[%clk 0:00:41]}  c3 {[%clk 0:01:46]} 15. Qc2 {[%clk 0:00:33]}  Nd5 {[%clk 0:01:40]} 16. Bf4 {[%clk 0:00:28]}  Qb6 {[%clk 0:01:30]} 17. e3 {[%clk 0:00:26]}  O-O {[%clk 0:01:29]} 18. Nd3 {[%clk 0:00:17]}  a5 {[%clk 0:01:25]} 19. Ndc5 {[%clk 0:00:13]}  Na6 {[%clk 0:01:24]} 20. Nxb7 {[%clk 0:00:06]}  Qxb7 {[%clk 0:01:24]} 21. Ng5 {[%clk 0:00:04]}  g6 {[%clk 0:01:23]} 22. h4 {[%clk 0:00:04]}  Rac8 {[%clk 0:01:11]} 23. h5 {[%clk 0:00:04]}  c5 {[%clk 0:01:12]} 24. dxc5 {[%clk 0:00:03]}  Rxc5 {[%clk 0:01:10]} 25. Ne4 {[%clk 0:00:03]}  Rcc8 {[%clk 0:01:09]} 26. Nf6+ {[%clk 0:00:03]}  Kg7 {[%clk 0:01:09]} 27. Nxd5 {[%clk 0:00:02]}  exd5 {[%clk 0:01:09]} 0-1


[Site "https://www.chess.com"]

[Event "Titled Tuesday Blitz April 26 Late 2022"]
[White "Pakleza, Zbigniew"]
[Black "Derraugh, Geordie"]
[WhiteFideId "1119290"]
[BlackFideId "2603950"]
[WhiteElo "2467"]
[BlackElo "2116"]
[Result "1-0"]
[Round "05"]
[TimeControl "180+1"]
[Date "2022.04.26"]
[WhiteClock "0:00:25"]
[BlackClock "0:00:12"]

1. d4 {[%clk 0:03:00]}  Nf6 {[%clk 0:02:59]} 2. Nf3 {[%clk 0:03:01]}  g6 {[%clk 0:02:59]} 3. Bf4 {[%clk 0:03:01]}  Bg7 {[%clk 0:02:58]} 4. e3 {[%clk 0:03:01]}  O-O {[%clk 0:02:58]} 5. Be2 {[%clk 0:03:02]}  d6 {[%clk 0:02:57]} 6. h3 {[%clk 0:03:03]}  Nbd7 {[%clk 0:02:57]} 7. O-O {[%clk 0:03:03]}  c6 {[%clk 0:02:57]} 8. c4 {[%clk 0:03:02]}  Qb6 {[%clk 0:02:53]} 9. Qc2 {[%clk 0:02:50]}  Re8 {[%clk 0:02:53]} 10. Nc3 {[%clk 0:02:49]}  e5 {[%clk 0:02:52]} 11. Bh2 {[%clk 0:02:50]}  a6 {[%clk 0:02:39]} 12. a3 {[%clk 0:02:45]}  e4 {[%clk 0:02:37]} 13. Nd2 {[%clk 0:02:44]}  d5 {[%clk 0:02:37]} 14. Rfc1 {[%clk 0:02:36]}  Nf8 {[%clk 0:02:27]} 15. cxd5 {[%clk 0:02:30]}  cxd5 {[%clk 0:02:23]} 16. Na4 {[%clk 0:02:29]}  Qe6 {[%clk 0:02:16]} 17. Qc7 {[%clk 0:02:22]}  Qf5 {[%clk 0:02:09]} 18. Nb6 {[%clk 0:02:12]}  Ne6 {[%clk 0:02:00]} 19. Qe5 {[%clk 0:01:58]}  Bd7 {[%clk 0:01:41]} 20. Qxf5 {[%clk 0:01:55]}  gxf5 {[%clk 0:01:41]} 21. Nxa8 {[%clk 0:01:54]}  Rxa8 {[%clk 0:01:42]} 22. Be5 {[%clk 0:01:50]}  Bc6 {[%clk 0:01:40]} 23. g3 {[%clk 0:01:47]}  Nd7 {[%clk 0:01:38]} 24. Bxg7 {[%clk 0:01:46]}  Kxg7 {[%clk 0:01:39]} 25. Nb3 {[%clk 0:01:36]}  a5 {[%clk 0:01:34]} 26. a4 {[%clk 0:01:27]}  Nb6 {[%clk 0:01:25]} 27. Bb5 {[%clk 0:01:27]}  Bxb5 {[%clk 0:01:25]} 28. axb5 {[%clk 0:01:28]}  Nc4 {[%clk 0:01:23]} 29. Nc5 {[%clk 0:01:15]}  Nxc5 {[%clk 0:01:16]} 30. dxc5 {[%clk 0:01:16]}  Nxb2 {[%clk 0:01:16]} 31. c6 {[%clk 0:01:07]}  bxc6 {[%clk 0:01:06]} 32. bxc6 {[%clk 0:01:08]}  Nc4 {[%clk 0:01:00]} 33. Rd1 {[%clk 0:00:49]}  Rc8 {[%clk 0:00:27]} 34. Rxd5 {[%clk 0:00:49]}  Rxc6 {[%clk 0:00:28]} 35. Rxf5 {[%clk 0:00:44]}  Kg6 {[%clk 0:00:28]} 36. Rd5 {[%clk 0:00:38]}  f6 {[%clk 0:00:20]} 37. Rc1 {[%clk 0:00:33]}  a4 {[%clk 0:00:18]} 38. Rd4 {[%clk 0:00:32]}  Ne5 {[%clk 0:00:14]} 39. Rxc6 {[%clk 0:00:32]}  Nxc6 {[%clk 0:00:15]} 40. Rxe4 {[%clk 0:00:26]}  a3 {[%clk 0:00:10]} 41. Ra4 {[%clk 0:00:27]}  Ne5 {[%clk 0:00:11]} 42. Rxa3 {[%clk 0:00:26]}  Nf3+ {[%clk 0:00:11]} 43. Kg2 {[%clk 0:00:26]}  Ng5 {[%clk 0:00:12]} 44. Ra6 {[%clk 0:00:25]} 1-0


[Site "https://www.chess.com"]

[Event "Titled Tuesday Blitz April 26 Late 2022"]
[White "Papp, Petra"]
[Black "Czopor, Maciej"]
[WhiteFideId "739049"]
[BlackFideId "21805431"]
[WhiteElo "2259"]
[BlackElo "1999"]
[Result "0-1"]
[Round "05"]
[TimeControl "180+1"]
[Date "2022.04.26"]
[WhiteClock "0:00:06"]
[BlackClock "0:00:04"]

1. e4 {[%clk 0:02:49]}  c6 {[%clk 0:02:55]} 2. d4 {[%clk 0:02:47]}  d5 {[%clk 0:02:55]} 3. Nd2 {[%clk 0:02:47]}  dxe4 {[%clk 0:02:54]} 4. Nxe4 {[%clk 0:02:48]}  Nf6 {[%clk 0:02:55]} 5. Nxf6+ {[%clk 0:02:48]}  exf6 {[%clk 0:02:56]} 6. c3 {[%clk 0:02:42]}  Bd6 {[%clk 0:02:57]} 7. Bd3 {[%clk 0:02:42]}  O-O {[%clk 0:02:57]} 8. Ne2 {[%clk 0:02:42]}  Re8 {[%clk 0:02:57]} 9. O-O {[%clk 0:02:43]}  Nd7 {[%clk 0:02:55]} 10. Ng3 {[%clk 0:02:41]}  Nf8 {[%clk 0:02:53]} 11. f4 {[%clk 0:02:26]}  Qc7 {[%clk 0:02:44]} 12. f5 {[%clk 0:02:21]}  c5 {[%clk 0:02:29]} 13. Qg4 {[%clk 0:02:07]}  Bxg3 {[%clk 0:02:17]} 14. hxg3 {[%clk 0:02:00]}  cxd4 {[%clk 0:02:17]} 15. cxd4 {[%clk 0:01:42]}  Bd7 {[%clk 0:02:17]} 16. Bd2 {[%clk 0:01:23]}  Qd6 {[%clk 0:02:10]} 17. Bc3 {[%clk 0:01:02]}  Bc6 {[%clk 0:02:09]} 18. Rfe1 {[%clk 0:00:53]}  h6 {[%clk 0:02:08]} 19. a3 {[%clk 0:00:50]}  Nh7 {[%clk 0:02:08]} 20. Bb4 {[%clk 0:00:46]}  Qd7 {[%clk 0:02:07]} 21. Rac1 {[%clk 0:00:39]}  Ng5 {[%clk 0:02:07]} 22. Kh2 {[%clk 0:00:37]}  Qd5 {[%clk 0:01:56]} 23. Rxe8+ {[%clk 0:00:31]}  Rxe8 {[%clk 0:01:55]} 24. Rc2 {[%clk 0:00:32]}  Re3 {[%clk 0:01:34]} 25. Bc4 {[%clk 0:00:30]}  Qd7 {[%clk 0:00:57]} 26. d5 {[%clk 0:00:30]}  Ba4 {[%clk 0:00:57]} 27. Rc3 {[%clk 0:00:20]}  Re4 {[%clk 0:00:56]} 28. Qh5 {[%clk 0:00:15]}  Rd4 {[%clk 0:00:21]} 29. d6 {[%clk 0:00:13]}  Ne4 {[%clk 0:00:17]} 30. Rc1 {[%clk 0:00:08]}  Bc6 {[%clk 0:00:15]} 31. Bc3 {[%clk 0:00:07]}  Rxd6 {[%clk 0:00:12]} 32. Qg4 {[%clk 0:00:08]}  Ng5 {[%clk 0:00:11]} 33. Bb4 {[%clk 0:00:06]}  Rd4 {[%clk 0:00:11]} 34. Qh5 {[%clk 0:00:05]}  Qxf5 {[%clk 0:00:06]} 35. Bxf7+ {[%clk 0:00:03]}  Kh7 {[%clk 0:00:04]} 36. Be8 {[%clk 0:00:02]}  Qe4 {[%clk 0:00:02]} 37. Bxc6 {[%clk 0:00:02]}  bxc6 {[%clk 0:00:02]} 38. Rf1 {[%clk 0:00:02]}  Qg4 {[%clk 0:00:01]} 39. Qxg4 {[%clk 0:00:02]}  Rxg4 {[%clk 0:00:02]} 40. Rc1 {[%clk 0:00:01]}  Ne4 {[%clk 0:00:02]} 41. Rxc6 {[%clk 0:00:01]}  Nxg3 {[%clk 0:00:01]} 42. Rc7 {[%clk 0:00:02]}  Nf5 {[%clk 0:00:01]} 43. Kh3 {[%clk 0:00:02]}  Rg3+ {[%clk 0:00:01]} 44. Kh2 {[%clk 0:00:03]}  Rg4 {[%clk 0:00:02]} 45. Rxa7 {[%clk 0:00:03]}  Ne3 {[%clk 0:00:02]} 46. Ra5 {[%clk 0:00:02]}  Rxg2+ {[%clk 0:00:02]} 47. Kh3 {[%clk 0:00:03]}  Rxb2 {[%clk 0:00:02]} 48. Rc5 {[%clk 0:00:02]}  Rb3 {[%clk 0:00:02]} 49. Rc3 {[%clk 0:00:01]}  Rxc3 {[%clk 0:00:02]} 50. Bxc3 {[%clk 0:00:02]}  Kg6 {[%clk 0:00:02]} 51. a4 {[%clk 0:00:02]}  Nc4 {[%clk 0:00:02]} 52. a5 {[%clk 0:00:02]}  Kf5 {[%clk 0:00:01]} 53. a6 {[%clk 0:00:02]}  Nb6 {[%clk 0:00:02]} 54. Bd4 {[%clk 0:00:03]}  Na8 {[%clk 0:00:02]} 55. Kh4 {[%clk 0:00:03]}  Ke4 {[%clk 0:00:02]} 56. Bc5 {[%clk 0:00:03]}  g6 {[%clk 0:00:02]} 57. Kg4 {[%clk 0:00:03]}  f5+ {[%clk 0:00:02]} 58. Kg3 {[%clk 0:00:03]}  g5 {[%clk 0:00:02]} 59. Kf2 {[%clk 0:00:04]}  h5 {[%clk 0:00:02]} 60. Be3 {[%clk 0:00:04]}  f4 {[%clk 0:00:03]} 61. Bc5 {[%clk 0:00:04]}  g4 {[%clk 0:00:03]} 62. Be7 {[%clk 0:00:04]}  Kd5 {[%clk 0:00:02]} 63. Bf6 {[%clk 0:00:04]}  Kc6 {[%clk 0:00:02]} 64. Bg5 {[%clk 0:00:04]}  f3 {[%clk 0:00:02]} 65. Kg3 {[%clk 0:00:05]}  Kb5 {[%clk 0:00:02]} 66. Be3 {[%clk 0:00:05]}  Kxa6 {[%clk 0:00:03]} 67. Kh4 {[%clk 0:00:06]}  Nc7 {[%clk 0:00:03]} 68. Kxh5 {[%clk 0:00:05]}  g3 {[%clk 0:00:03]} 69. Kg4 {[%clk 0:00:06]}  f2 {[%clk 0:00:04]} 70. Bxf2 {[%clk 0:00:05]}  gxf2 {[%clk 0:00:04]} 71. Kg3 {[%clk 0:00:06]}  f1=Q {[%clk 0:00:04]} 0-1


[Site "https://www.chess.com"]

[Event "Titled Tuesday Blitz April 26 Late 2022"]
[White "Petrova, Irina"]
[Black "Buchenau, Frank"]
[WhiteFideId "14124122"]
[BlackFideId "4604350"]
[WhiteElo "1993"]
[BlackElo "2193"]
[Result "1-0"]
[Round "05"]
[TimeControl "180+1"]
[Date "2022.04.26"]
[WhiteClock "0:00:25"]
[BlackClock "0:01:53"]

1. e4 {[%clk 0:03:00]}  e6 {[%clk 0:03:00]} 2. d4 {[%clk 0:03:00]}  d5 {[%clk 0:03:00]} 3. Nc3 {[%clk 0:03:00]}  Nf6 {[%clk 0:03:00]} 4. Bg5 {[%clk 0:03:00]}  dxe4 {[%clk 0:03:00]} 5. Nxe4 {[%clk 0:02:59]}  Be7 {[%clk 0:03:00]} 6. Bxf6 {[%clk 0:02:59]}  gxf6 {[%clk 0:03:00]} 7. g3 {[%clk 0:02:52]}  f5 {[%clk 0:02:56]} 8. Nc3 {[%clk 0:02:50]}  Bf6 {[%clk 0:02:53]} 9. Nge2 {[%clk 0:02:50]}  Nc6 {[%clk 0:02:52]} 10. d5 {[%clk 0:02:47]}  Ne5 {[%clk 0:02:51]} 11. Bg2 {[%clk 0:02:45]}  O-O {[%clk 0:02:50]} 12. O-O {[%clk 0:02:39]}  c6 {[%clk 0:02:49]} 13. dxc6 {[%clk 0:02:37]}  Qe8 {[%clk 0:02:47]} 14. cxb7 {[%clk 0:02:33]}  Bxb7 {[%clk 0:02:46]} 15. Bxb7 {[%clk 0:02:33]}  Rb8 {[%clk 0:02:45]} 16. Bg2 {[%clk 0:02:33]}  Rxb2 {[%clk 0:02:44]} 17. Rb1 {[%clk 0:02:30]}  Qb8 {[%clk 0:02:41]} 18. Nf4 {[%clk 0:01:57]}  Qb4 {[%clk 0:02:37]} 19. Nce2 {[%clk 0:01:47]}  Rb8 {[%clk 0:02:27]} 20. Rxb2 {[%clk 0:01:39]}  Qxb2 {[%clk 0:02:28]} 21. Nh5 {[%clk 0:01:32]}  Be7 {[%clk 0:02:27]} 22. Qd4 {[%clk 0:01:24]}  Qxd4 {[%clk 0:02:22]} 23. Nxd4 {[%clk 0:01:25]}  Rb2 {[%clk 0:02:21]} 24. Rc1 {[%clk 0:01:10]}  Bc5 {[%clk 0:02:18]} 25. Nb3 {[%clk 0:01:03]}  Bb6 {[%clk 0:02:18]} 26. Nf4 {[%clk 0:00:59]}  Ng4 {[%clk 0:02:14]} 27. Nd3 {[%clk 0:00:58]}  Rxa2 {[%clk 0:02:14]} 28. h3 {[%clk 0:00:56]}  Nf6 {[%clk 0:02:14]} 29. c4 {[%clk 0:00:46]}  Ne4 {[%clk 0:02:13]} 30. c5 {[%clk 0:00:44]}  Bc7 {[%clk 0:02:09]} 31. c6 {[%clk 0:00:42]}  a5 {[%clk 0:02:07]} 32. Bxe4 {[%clk 0:00:39]}  fxe4 {[%clk 0:02:06]} 33. Ndc5 {[%clk 0:00:39]}  a4 {[%clk 0:02:06]} 34. Nd4 {[%clk 0:00:38]}  e3 {[%clk 0:02:00]} 35. fxe3 {[%clk 0:00:36]}  Bxg3 {[%clk 0:02:00]} 36. Nb5 {[%clk 0:00:33]}  Bf2+ {[%clk 0:01:57]} 37. Kf1 {[%clk 0:00:29]}  Bxe3 {[%clk 0:01:55]} 38. c7 {[%clk 0:00:28]}  Bxc1 {[%clk 0:01:54]} 39. c8=Q+ {[%clk 0:00:27]}  Kg7 {[%clk 0:01:54]} 40. Nxe6+ {[%clk 0:00:26]}  fxe6 {[%clk 0:01:53]} 41. Qxc1 {[%clk 0:00:25]} 1-0


[Site "https://www.chess.com"]

[Event "Titled Tuesday Blitz April 26 Late 2022"]
[White "Prohorov, Olexandr"]
[Black "Martinez Reyes, Pedro Ramon"]
[WhiteFideId "14105578"]
[BlackFideId "3901807"]
[WhiteElo "1993"]
[BlackElo "2410"]
[Result "0-1"]
[Round "05"]
[TimeControl "180+1"]
[Date "2022.04.26"]
[WhiteClock "0:00:01"]
[BlackClock "0:00:18"]

1. Nf3 {[%clk 0:02:46]}  b5 {[%clk 0:02:57]} 2. g3 {[%clk 0:02:41]}  Bb7 {[%clk 0:02:57]} 3. Bg2 {[%clk 0:02:41]}  Nf6 {[%clk 0:02:57]} 4. O-O {[%clk 0:02:39]}  c5 {[%clk 0:02:57]} 5. d4 {[%clk 0:02:36]}  cxd4 {[%clk 0:02:56]} 6. Qxd4 {[%clk 0:02:35]}  g6 {[%clk 0:02:51]} 7. a4 {[%clk 0:02:31]}  Nc6 {[%clk 0:02:37]} 8. Qf4 {[%clk 0:02:22]}  b4 {[%clk 0:02:35]} 9. a5 {[%clk 0:02:20]}  Rc8 {[%clk 0:02:17]} 10. a6 {[%clk 0:02:16]}  Ba8 {[%clk 0:02:17]} 11. b3 {[%clk 0:02:11]}  Bg7 {[%clk 0:02:16]} 12. Bb2 {[%clk 0:02:10]}  Nd5 {[%clk 0:02:14]} 13. Qc1 {[%clk 0:02:08]}  Nc3 {[%clk 0:02:14]} 14. Nxc3 {[%clk 0:02:00]}  bxc3 {[%clk 0:02:15]} 15. Ba3 {[%clk 0:02:00]}  O-O {[%clk 0:02:15]} 16. Rd1 {[%clk 0:01:50]}  d6 {[%clk 0:02:12]} 17. Qe3 {[%clk 0:01:36]}  Re8 {[%clk 0:02:00]} 18. Bc5 {[%clk 0:01:29]}  Qc7 {[%clk 0:01:58]} 19. Bd4 {[%clk 0:01:28]}  Nxd4 {[%clk 0:01:45]} 20. Nxd4 {[%clk 0:01:28]}  Bxg2 {[%clk 0:01:42]} 21. Kxg2 {[%clk 0:01:28]}  Rb8 {[%clk 0:01:33]} 22. Nf3 {[%clk 0:01:25]}  Rb6 {[%clk 0:01:30]} 23. Ra4 {[%clk 0:01:18]}  Qc8 {[%clk 0:01:24]} 24. Qd3 {[%clk 0:01:14]}  Qc6 {[%clk 0:01:17]} 25. Rc4 {[%clk 0:01:07]}  Qb5 {[%clk 0:01:12]} 26. Rc7 {[%clk 0:00:54]}  Qxd3 {[%clk 0:01:05]} 27. exd3 {[%clk 0:00:49]}  Rxa6 {[%clk 0:01:05]} 28. Re1 {[%clk 0:00:43]}  Ra2 {[%clk 0:00:59]} 29. Re2 {[%clk 0:00:44]}  Bf6 {[%clk 0:00:58]} 30. g4 {[%clk 0:00:38]}  g5 {[%clk 0:00:55]} 31. d4 {[%clk 0:00:37]}  Rb8 {[%clk 0:00:48]} 32. Rxc3 {[%clk 0:00:37]}  a5 {[%clk 0:00:48]} 33. h4 {[%clk 0:00:30]}  h6 {[%clk 0:00:48]} 34. hxg5 {[%clk 0:00:29]}  hxg5 {[%clk 0:00:49]} 35. Rc7 {[%clk 0:00:24]}  Rb4 {[%clk 0:00:30]} 36. Rd2 {[%clk 0:00:24]}  Kg7 {[%clk 0:00:26]} 37. Ra7 {[%clk 0:00:20]}  d5 {[%clk 0:00:20]} 38. c3 {[%clk 0:00:13]}  Rxd2 {[%clk 0:00:20]} 39. Nxd2 {[%clk 0:00:13]}  Rb5 {[%clk 0:00:19]} 40. Kf3 {[%clk 0:00:09]}  e5 {[%clk 0:00:20]} 41. Ke3 {[%clk 0:00:04]}  exd4+ {[%clk 0:00:18]} 42. cxd4 {[%clk 0:00:04]}  Bd8 {[%clk 0:00:18]} 43. Kd3 {[%clk 0:00:03]}  Bb6 {[%clk 0:00:18]} 44. Rb7 {[%clk 0:00:02]}  Rb4 {[%clk 0:00:19]} 45. Rb8 {[%clk 0:00:01]}  Rxd4+ {[%clk 0:00:18]} 0-1


[Site "https://www.chess.com"]